[Event "Masters Tournament (MTO)"]
[Site "Biel, Switzerland"]
[Date "2026.07.20"]
[Round "7.16"]
[White "Cherniaev, Alexander"]
[Black "Harish, Neeraj"]
[Result "1/2-1/2"]
[TimeControl "100+30+30sec/move"]
[WhiteTitle "-"]
[BlackTitle "-"]
[WhiteFideId "4117301"]
[BlackFideId "30958130"]
[WhiteElo "2275"]
[BlackElo "2201"]

1. e4 {[%clk 01:40:56]} {[%emt 00:00:04]} c5 {[%clk 01:40:10]} {[%emt
00:00:51]} 2. Nf3 {[%clk 01:40:24]} {[%emt 00:01:02]} e6 {[%clk 01:40:29]}
{[%emt 00:00:11]} 3. d3 {[%clk 01:39:48]} {[%emt 00:01:06]} Nc6 {[%clk
01:40:08]} {[%emt 00:00:51]} 4. g3 {[%clk 01:40:12]} {[%emt 00:00:06]} Nf6
{[%clk 01:38:56]} {[%emt 00:01:42]} 5. Bg2 {[%clk 01:40:34]} {[%emt 00:00:07]}
d5 {[%clk 01:38:01]} {[%emt 00:01:26]} 6. Qe2 {[%clk 01:40:49]} {[%emt
00:00:15]} Be7 {[%clk 01:37:49]} {[%emt 00:00:41]} 7. O-O {[%clk 01:40:45]}
{[%emt 00:00:34]} O-O {[%clk 01:38:07]} {[%emt 00:00:13]} 8. a4 {[%clk
01:40:51]} {[%emt 00:00:24]} dxe4 {[%clk 01:32:01]} {[%emt 00:06:36]} 9. dxe4
{[%clk 01:41:16]} {[%emt 00:00:05]} e5 {[%clk 01:32:18]} {[%emt 00:00:13]} 10.
c3 {[%clk 01:40:46]} {[%emt 00:01:00]} Be6 {[%clk 01:28:50]} {[%emt 00:03:58]}
11. Na3 {[%clk 01:37:57]} {[%emt 00:03:19]} h6 {[%clk 01:22:23]} {[%emt
00:06:57]} 12. Nc4 {[%clk 01:35:10]} {[%emt 00:03:16]} Qc7 {[%clk 01:21:49]}
{[%emt 00:01:06]} 13. Nh4 {[%clk 01:34:02]} {[%emt 00:01:37]} Rfd8 {[%clk
01:17:04]} {[%emt 00:05:14]} 14. Nf5 {[%clk 01:33:37]} {[%emt 00:00:55]} Bf8
{[%clk 01:17:04]} {[%emt 00:00:31]} 15. b3 {[%clk 01:26:52]} {[%emt 00:07:15]}
a6 {[%clk 01:11:08]} {[%emt 00:06:26]} 16. Qf3 {[%clk 01:23:01]} {[%emt
00:04:20]} Nd7 {[%clk 00:58:39]} {[%emt 00:12:59]} 17. Rb1 {[%clk 01:08:06]}
{[%emt 00:15:25]} Nb6 {[%clk 00:47:33]} {[%emt 00:11:36]} 18. Nfe3 {[%clk
01:02:12]} {[%emt 00:06:24]} Nxc4 {[%clk 00:41:58]} {[%emt 00:06:06]} 19. bxc4
{[%clk 01:02:22]} {[%emt 00:00:20]} Na5 {[%clk 00:42:03]} {[%emt 00:00:25]} 20.
Nd5 {[%clk 01:01:46]} {[%emt 00:01:06]} Bxd5 {[%clk 00:40:31]} {[%emt
00:02:02]} 21. cxd5 {[%clk 01:02:09]} {[%emt 00:00:06]} c4 {[%clk 00:40:46]}
{[%emt 00:00:15]} 22. Qg4 {[%clk 00:53:21]} {[%emt 00:09:18]} Kh8 {[%clk
00:33:50]} {[%emt 00:07:27]} 23. Bf3 {[%clk 00:47:51]} {[%emt 00:06:00]} Nb3
{[%clk 00:32:50]} {[%emt 00:01:30]} 24. Bd1 {[%clk 00:44:25]} {[%emt 00:03:55]}
Nxc1 {[%clk 00:31:57]} {[%emt 00:01:24]} 25. Rxc1 {[%clk 00:44:54]} {[%emt
00:00:01]} b5 {[%clk 00:30:57]} {[%emt 00:01:31]} 26. Qe2 {[%clk 00:38:49]}
{[%emt 00:06:34]} Qa5 {[%clk 00:25:57]} {[%emt 00:05:29]} 27. axb5 {[%clk
00:32:42]} {[%emt 00:06:37]} axb5 {[%clk 00:26:13]} {[%emt 00:00:14]} 28. f4
{[%clk 00:33:00]} {[%emt 00:00:12]} Bd6 {[%clk 00:22:51]} {[%emt 00:03:53]} 29.
Qh5 {[%clk 00:33:02]} {[%emt 00:00:28]} Qa7+ {[%clk 00:17:24]} {[%emt
00:05:57]} 30. Kh1 {[%clk 00:33:24]} {[%emt 00:00:08]} exf4 {[%clk 00:17:03]}
{[%emt 00:00:51]} 31. e5 {[%clk 00:25:18]} {[%emt 00:08:36]} Qe3 {[%clk
00:13:56]} {[%emt 00:03:37]} 32. Bc2 {[%clk 00:25:46]} {[%emt 00:00:02]} Qxe5
{[%clk 00:10:47]} {[%emt 00:03:39]} 33. Qxf7 {[%clk 00:26:12]} {[%emt
00:00:04]} fxg3 {[%clk 00:05:41]} {[%emt 00:05:36]} 34. Qg6 {[%clk 00:26:30]}
{[%emt 00:00:12]} g2+ {[%clk 00:05:52]} {[%emt 00:00:19]} 35. Qxg2 {[%clk
00:26:54]} {[%emt 00:00:06]} Ra2 {[%clk 00:05:39]} {[%emt 00:00:43]} 36. Rf3
{[%clk 00:24:18]} {[%emt 00:03:06]} Qxd5 {[%clk 00:03:58]} {[%emt 00:02:12]} 37.
Rcf1 {[%clk 00:24:31]} {[%emt 00:00:16]} Qe5 {[%clk 00:03:25]} {[%emt
00:01:03]} 38. Rd1 {[%clk 00:17:15]} {[%emt 00:07:46]} Re8 {[%clk 00:02:47]}
{[%emt 00:01:08]} 39. Rf2 {[%clk 00:17:38]} {[%emt 00:00:07]} Qxc3 {[%clk
00:01:21]} {[%emt 00:01:55]} 40. Qg6 {[%clk 00:17:28]} {[%emt 00:00:40]} Re1+
{[%clk 00:01:38]} {[%emt 00:00:14]} 41. Kg2 {[%clk 00:16:16]} {[%emt 00:01:41]}
Rxc2 {[%clk 00:29:47]} {[%emt 00:02:21]} 42. Rxc2 {[%clk 00:46:45]} {[%emt
00:00:01]} Qe3 {[%clk 00:28:39]} {[%emt 00:01:39]} 43. Rxe1 {[%clk 00:43:12]}
{[%emt 00:04:02]} Qxe1 {[%clk 00:28:23]} {[%emt 00:00:45]} 44. Ra2 {[%clk
00:40:31]} {[%emt 00:03:12]} Bf8 {[%clk 00:24:22]} {[%emt 00:04:31]} 45. Qf5
{[%clk 00:22:18]} {[%emt 00:18:43]} Qe8 {[%clk 00:18:37]} {[%emt 00:06:15]} 46.
Qd5 {[%clk 00:15:27]} {[%emt 00:07:21]} Qg6+ {[%clk 00:14:48]} {[%emt
00:04:19]} 47. Kh3 {[%clk 00:15:08]} {[%emt 00:00:49]} Qg5 {[%clk 00:11:19]}
{[%emt 00:04:00]} 48. Qxg5 {[%clk 00:12:44]} {[%emt 00:02:54]} hxg5 {[%clk
00:11:41]} {[%emt 00:00:07]} 49. Ra8 {[%clk 00:12:44]} {[%emt 00:00:30]} Kg8
{[%clk 00:12:00]} {[%emt 00:00:11]} 50. Rc8 {[%clk 00:09:57]} {[%emt 00:03:17]}
Kf7 {[%clk 00:11:16]} {[%emt 00:01:14]} 51. Kg4 {[%clk 00:10:20]} {[%emt
00:00:07]} Be7 {[%clk 00:11:28]} {[%emt 00:00:18]} 52. Kf5 {[%clk 00:10:00]}
{[%emt 00:00:50]} Bd6 {[%clk 00:09:46]} {[%emt 00:02:12]} 53. h3 {[%clk
00:09:36]} {[%emt 00:00:55]} g6+ {[%clk 00:08:19]} {[%emt 00:01:57]} 54. Ke4
{[%clk 00:10:01]} {[%emt 00:00:05]} Ke6 {[%clk 00:08:34]} {[%emt 00:00:15]} 55.
Rc6 {[%clk 00:09:42]} {[%emt 00:00:48]} Kd7 {[%clk 00:06:41]} {[%emt 00:02:24]}
56. Kd5 {[%clk 00:08:00]} {[%emt 00:02:12]} Bf4 {[%clk 00:06:52]} {[%emt
00:00:18]} 57. Rc5 {[%clk 00:08:14]} {[%emt 00:00:16]} Bd2 {[%clk 00:06:32]}
{[%emt 00:00:50]} 58. Rxb5 {[%clk 00:07:22]} {[%emt 00:01:23]} c3 {[%clk
00:06:51]} {[%emt 00:00:11]} 59. Rc5 {[%clk 00:06:50]} {[%emt 00:01:01]} Ke7
{[%clk 00:07:02]} {[%emt 00:00:20]} 1/2-1/2

[Event "Masters Tournament (MTO)"]
[Site "Biel, Switzerland"]
[Date "2026.07.20"]
[Round "7.17"]
[White "Udelnov, Valentin"]
[Black "Xu, Chang(Cq)"]
[Result "0-1"]
[TimeControl "100+30+30sec/move"]
[WhiteTitle "-"]
[BlackTitle "-"]
[WhiteFideId "16265734"]
[BlackFideId "8641757"]
[WhiteElo "2269"]
[BlackElo "2125"]

1. e4 {[%clk 01:40:59]} c5 {[%clk 01:40:52]} {[%emt 00:00:08]} 2. Nf3 {[%clk
01:41:26]} {[%emt 00:00:03]} d6 {[%clk 01:41:15]} {[%emt 00:00:08]} 3. d4
{[%clk 01:41:53]} {[%emt 00:00:03]} cxd4 {[%clk 01:41:39]} {[%emt 00:00:08]} 4.
Qxd4 {[%clk 01:42:19]} {[%emt 00:00:03]} a6 {[%clk 01:42:00]} {[%emt 00:00:08]}
5. c4 {[%clk 01:42:39]} {[%emt 00:00:10]} Nc6 {[%clk 01:42:20]} {[%emt
00:00:11]} 6. Qd2 {[%clk 01:43:01]} {[%emt 00:00:07]} Nf6 {[%clk 01:38:45]}
{[%emt 00:04:05]} 7. Nc3 {[%clk 01:43:19]} {[%emt 00:00:12]} g6 {[%clk
01:39:06]} {[%emt 00:00:08]} 8. h3 {[%clk 01:43:44]} {[%emt 00:00:05]} Bg7
{[%clk 01:39:03]} {[%emt 00:00:34]} 9. Bd3 {[%clk 01:43:08]} {[%emt 00:01:06]}
O-O {[%clk 01:36:07]} {[%emt 00:03:25]} 10. O-O {[%clk 01:43:35]} {[%emt
00:00:04]} Nd7 {[%clk 01:25:13]} {[%emt 00:11:24]} 11. Re1 {[%clk 01:42:48]}
{[%emt 00:01:17]} Nde5 {[%clk 01:17:38]} {[%emt 00:08:05]} 12. Nxe5 {[%clk
01:36:50]} {[%emt 00:06:28]} Nxe5 {[%clk 01:02:01]} {[%emt 00:16:07]} 13. Bf1
{[%clk 01:18:08]} {[%emt 00:19:13]} Rb8 {[%clk 00:49:54]} {[%emt 00:12:37]} 14.
Kh1 {[%clk 01:07:09]} {[%emt 00:11:28]} Be6 {[%clk 00:44:09]} {[%emt 00:06:15]}
15. Nd5 {[%clk 00:59:28]} {[%emt 00:08:11]} b5 {[%clk 00:42:39]} {[%emt
00:02:00]} 16. cxb5 {[%clk 00:57:23]} {[%emt 00:02:36]} axb5 {[%clk 00:43:02]}
{[%emt 00:00:07]} 17. Rb1 {[%clk 00:49:20]} {[%emt 00:08:33]} Bd7 {[%clk
00:32:07]} {[%emt 00:11:24]} 18. b3 {[%clk 00:46:41]} {[%emt 00:03:10]} Bc6
{[%clk 00:28:57]} {[%emt 00:03:40]} 19. Bb2 {[%clk 00:46:12]} {[%emt 00:00:59]}
Ba8 {[%clk 00:24:57]} {[%emt 00:04:30]} 20. Qd4 {[%clk 00:43:41]} {[%emt
00:03:00]} e6 {[%clk 00:21:18]} {[%emt 00:04:09]} 21. Nb4 {[%clk 00:40:37]}
{[%emt 00:03:35]} Qh4 {[%clk 00:19:09]} {[%emt 00:02:38]} 22. Nd3 {[%clk
00:16:52]} {[%emt 00:24:15]} Qh6 {[%clk 00:16:13]} {[%emt 00:03:27]} 23. Bc1
{[%clk 00:13:48]} {[%emt 00:03:33]} g5 {[%clk 00:16:32]} {[%emt 00:00:12]} 24.
Qe3 {[%clk 00:13:01]} {[%emt 00:01:17]} f5 {[%clk 00:12:56]} {[%emt 00:04:05]}
25. Nxe5 {[%clk 00:11:47]} {[%emt 00:01:45]} Bxe5 {[%clk 00:12:16]} {[%emt
00:01:09]} 26. exf5 {[%clk 00:11:40]} {[%emt 00:00:37]} Rxf5 {[%clk 00:12:40]}
{[%emt 00:00:06]} 27. Kg1 {[%clk 00:07:01]} {[%emt 00:05:09]} Rbf8 {[%clk
00:12:31]} {[%emt 00:00:39]} 28. Bb2 {[%clk 00:04:46]} {[%emt 00:02:45]} Rxf2
{[%clk 00:07:45]} {[%emt 00:05:16]} 29. Bxe5 {[%clk 00:05:05]} {[%emt
00:00:11]} dxe5 {[%clk 00:08:11]} {[%emt 00:00:05]} 30. Qxe5 {[%clk 00:03:27]}
{[%emt 00:02:07]} Bd5 {[%clk 00:06:32]} {[%emt 00:02:09]} 31. Re2 {[%clk
00:02:26]} {[%emt 00:01:31]} R2f5 {[%clk 00:06:03]} {[%emt 00:00:59]} 32. Qg3
{[%clk 00:01:03]} {[%emt 00:01:53]} Qf6 {[%clk 00:05:19]} {[%emt 00:01:14]} 33.
Ree1 {[%clk 00:01:30]} {[%emt 00:00:04]} Rf2 {[%clk 00:05:07]} {[%emt
00:00:42]} 34. a4 {[%clk 00:00:51]} {[%emt 00:01:10]} b4 {[%clk 00:05:17]}
{[%emt 00:00:19]} 35. a5 {[%clk 00:01:02]} {[%emt 00:00:18]} h6 {[%clk
00:05:23]} {[%emt 00:00:24]} 36. a6 {[%clk 00:00:57]} {[%emt 00:00:35]} Qd4
{[%clk 00:05:16]} {[%emt 00:00:38]} 37. Kh2 {[%clk 00:01:11]} {[%emt 00:00:15]}
Rd2 {[%clk 00:03:09]} {[%emt 00:02:37]} 38. Qe3 {[%clk 00:00:35]} {[%emt
00:01:06]} Qxe3 {[%clk 00:03:15]} {[%emt 00:00:24]} 39. Rxe3 {[%clk 00:00:52]}
{[%emt 00:00:14]} Rxf1 {[%clk 00:03:34]} {[%emt 00:00:11]} 40. Rxf1 {[%clk
00:01:09]} {[%emt 00:00:12]} Rxg2+ {[%clk 00:03:59]} {[%emt 00:00:05]} 0-1

[Event "Masters Tournament (MTO)"]
[Site "Biel, Switzerland"]
[Date "2026.07.20"]
[Round "7.18"]
[White "Sasikiran, Krishnan"]
[Black "Kunz, Andre"]
[Result "1-0"]
[TimeControl "100+30+30sec/move"]
[WhiteTitle "-"]
[BlackTitle "-"]
[WhiteFideId "5004985"]
[BlackFideId "24623652"]
[WhiteElo "2546"]
[BlackElo "2116"]

1. d4 {[%clk 01:40:57]} {[%emt 00:00:02]} Nf6 {[%clk 01:40:46]} {[%emt
00:00:14]} 2. c4 {[%clk 01:41:17]} {[%emt 00:00:10]} e6 {[%clk 01:41:05]}
{[%emt 00:00:12]} 3. g3 {[%clk 01:41:31]} {[%emt 00:00:15]} d5 {[%clk
01:40:59]} {[%emt 00:00:35]} 4. Bg2 {[%clk 01:41:54]} {[%emt 00:00:08]} dxc4
{[%clk 01:40:17]} {[%emt 00:01:13]} 5. Nf3 {[%clk 01:42:18]} {[%emt 00:00:05]}
Bd7 {[%clk 01:40:07]} {[%emt 00:00:41]} 6. O-O {[%clk 01:41:08]} {[%emt
00:01:39]} Bc6 {[%clk 01:40:07]} {[%emt 00:00:30]} 7. Nbd2 {[%clk 01:40:31]}
{[%emt 00:01:07]} b5 {[%clk 01:38:41]} {[%emt 00:01:57]} 8. e4 {[%clk
01:40:41]} {[%emt 00:00:19]} Be7 {[%clk 01:31:24]} {[%emt 00:07:47]} 9. d5
{[%clk 01:34:14]} {[%emt 00:06:57]} exd5 {[%clk 01:28:25]} {[%emt 00:03:29]} 10.
Nd4 {[%clk 01:30:40]} {[%emt 00:04:04]} Bb7 {[%clk 01:25:57]} {[%emt 00:02:58]}
11. e5 {[%clk 01:22:44]} {[%emt 00:08:26]} Ne4 {[%clk 01:24:23]} {[%emt
00:02:04]} 12. Nxe4 {[%clk 01:17:31]} {[%emt 00:05:44]} dxe4 {[%clk 01:24:51]}
{[%emt 00:00:02]} 13. Nxb5 {[%clk 01:17:32]} {[%emt 00:00:28]} O-O {[%clk
01:13:57]} {[%emt 00:11:24]} 14. Qxd8 {[%clk 01:09:48]} {[%emt 00:08:15]} Bxd8
{[%clk 01:12:40]} {[%emt 00:01:47]} 15. Rd1 {[%clk 01:10:07]} {[%emt 00:00:10]}
Na6 {[%clk 01:02:46]} {[%emt 00:10:25]} 16. Be3 {[%clk 01:09:38]} {[%emt
00:00:58]} Re8 {[%clk 00:56:29]} {[%emt 00:06:47]} 17. Bd4 {[%clk 01:04:27]}
{[%emt 00:05:42]} Nb4 {[%clk 00:52:46]} {[%emt 00:04:12]} 18. Na3 {[%clk
00:56:56]} {[%emt 00:08:00]} Bd5 {[%clk 00:33:13]} {[%emt 00:20:03]} 19. Bc3
{[%clk 00:56:47]} {[%emt 00:00:38]} c5 {[%clk 00:29:22]} {[%emt 00:04:22]} 20.
Rxd5 {[%clk 00:56:05]} {[%emt 00:01:12]} Nxd5 {[%clk 00:29:19]} {[%emt
00:00:34]} 21. Bxe4 {[%clk 00:56:29]} {[%emt 00:00:05]} Nxc3 {[%clk 00:28:20]}
{[%emt 00:01:30]} 22. Bxa8 {[%clk 00:56:46]} {[%emt 00:00:12]} Ne2+ {[%clk
00:22:59]} {[%emt 00:05:51]} 23. Kf1 {[%clk 00:56:37]} {[%emt 00:00:39]} Nd4
{[%clk 00:22:14]} {[%emt 00:01:15]} 24. Nxc4 {[%clk 00:56:24]} {[%emt
00:00:43]} Bc7 {[%clk 00:18:43]} {[%emt 00:04:01]} 25. Bb7 {[%clk 00:49:59]}
{[%emt 00:06:55]} Kf8 {[%clk 00:17:30]} {[%emt 00:01:43]} 26. Re1 {[%clk
00:47:57]} {[%emt 00:02:31]} g5 {[%clk 00:15:30]} {[%emt 00:02:31]} 27. h3
{[%clk 00:43:37]} {[%emt 00:04:50]} h6 {[%clk 00:13:31]} {[%emt 00:02:30]} 28.
b3 {[%clk 00:29:47]} {[%emt 00:14:19]} Re7 {[%clk 00:10:07]} {[%emt 00:03:54]}
29. Bg2 {[%clk 00:26:30]} {[%emt 00:03:46]} Re6 {[%clk 00:07:34]} {[%emt
00:03:05]} 30. Re3 {[%clk 00:21:05]} {[%emt 00:05:54]} Ra6 {[%clk 00:06:52]}
{[%emt 00:01:12]} 31. a4 {[%clk 00:20:05]} {[%emt 00:01:30]} Re6 {[%clk
00:06:54]} {[%emt 00:00:27]} 32. Bb7 {[%clk 00:18:34]} {[%emt 00:02:02]} Re8
{[%clk 00:06:04]} {[%emt 00:01:20]} 33. a5 {[%clk 00:18:31]} {[%emt 00:00:33]}
f6 {[%clk 00:03:29]} {[%emt 00:03:06]} 34. f4 {[%clk 00:16:42]} {[%emt
00:02:18]} fxe5 {[%clk 00:02:43]} {[%emt 00:01:16]} 35. fxe5 {[%clk 00:16:02]}
{[%emt 00:01:11]} Ke7 {[%clk 00:02:39]} {[%emt 00:00:34]} 36. a6 {[%clk
00:15:48]} {[%emt 00:00:44]} Ke6 {[%clk 00:01:46]} {[%emt 00:01:23]} 37. Kg2
{[%clk 00:14:19]} {[%emt 00:01:57]} Rd8 {[%clk 00:01:35]} {[%emt 00:00:42]} 38.
Bf3 {[%clk 00:08:21]} {[%emt 00:06:28]} Rb8 {[%clk 00:01:45]} {[%emt 00:00:19]}
39. Bd1 {[%clk 00:07:56]} {[%emt 00:00:56]} Kd5 {[%clk 00:00:51]} {[%emt
00:01:23]} 40. e6 {[%clk 00:05:31]} {[%emt 00:02:56]} Re8 {[%clk 00:00:53]}
{[%emt 00:00:28]} 41. e7 {[%clk 00:04:17]} {[%emt 00:01:43]} Bd6 {[%clk
00:13:16]} {[%emt 00:18:08]} 42. Bf3+ {[%clk 00:31:59]} {[%emt 00:02:48]} Nxf3
{[%clk 00:13:44]} {[%emt 00:00:03]} 43. Kxf3 {[%clk 00:32:20]} {[%emt
00:00:08]} Bxe7 {[%clk 00:13:34]} {[%emt 00:00:41]} 44. Kg4 {[%clk 00:32:08]}
{[%emt 00:00:40]} h5+ {[%clk 00:10:03]} {[%emt 00:04:02]} 45. Kxh5 {[%clk
00:31:58]} {[%emt 00:00:39]} Rh8 {[%clk 00:10:32]} {[%emt 00:00:02]} 46. Kg6
{[%clk 00:31:40]} {[%emt 00:00:48]} Bd8 {[%clk 00:08:47]} {[%emt 00:02:15]} 47.
Kg7 {[%clk 00:28:53]} {[%emt 00:03:17]} Rxh3 {[%clk 00:09:03]} {[%emt
00:00:14]} 48. Rd3+ {[%clk 00:29:19]} {[%emt 00:00:04]} Kc6 {[%clk 00:09:31]}
{[%emt 00:00:03]} 49. Rxd8 {[%clk 00:28:36]} {[%emt 00:01:12]} Rxg3 {[%clk
00:07:46]} {[%emt 00:02:16]} 50. Rb8 {[%clk 00:23:37]} {[%emt 00:05:28]} Rg1
{[%clk 00:07:05]} {[%emt 00:01:11]} 51. Rb7 {[%clk 00:20:14]} {[%emt 00:03:53]}
g4 {[%clk 00:06:58]} {[%emt 00:00:38]} 52. Kf6 {[%clk 00:18:46]} {[%emt
00:01:57]} g3 {[%clk 00:05:54]} {[%emt 00:01:34]} 53. Ke6 {[%clk 00:18:31]}
{[%emt 00:00:45]} 1-0

[Event "Masters Tournament (MTO)"]
[Site "Biel, Switzerland"]
[Date "2026.07.20"]
[Round "7.19"]
[White "Haimovich, Tal"]
[Black "Malli, Suvirr"]
[Result "1-0"]
[TimeControl "100+30+30sec/move"]
[WhiteTitle "-"]
[BlackTitle "-"]
[WhiteFideId "2801698"]
[BlackFideId "1341855"]
[WhiteElo "2310"]
[BlackElo "2120"]

1. c4 {[%clk 01:40:57]} {[%emt 00:00:02]} Nf6 {[%clk 01:40:51]} {[%emt
00:00:10]} 2. Nc3 {[%clk 01:41:02]} {[%emt 00:00:26]} e6 {[%clk 01:39:58]}
{[%emt 00:01:23]} 3. d4 {[%clk 01:40:50]} {[%emt 00:00:41]} Bb4 {[%clk
01:40:03]} {[%emt 00:00:25]} 4. e3 {[%clk 01:40:15]} {[%emt 00:01:05]} O-O
{[%clk 01:40:05]} {[%emt 00:00:28]} 5. Bd3 {[%clk 01:40:08]} {[%emt 00:00:37]}
d5 {[%clk 01:40:06]} {[%emt 00:00:29]} 6. a3 {[%clk 01:40:07]} {[%emt
00:00:32]} dxc4 {[%clk 01:39:58]} {[%emt 00:00:38]} 7. Bxc4 {[%clk 01:40:18]}
{[%emt 00:00:18]} Bd6 {[%clk 01:40:20]} {[%emt 00:00:08]} 8. Nf3 {[%clk
01:40:11]} {[%emt 00:00:37]} Nc6 {[%clk 01:40:36]} {[%emt 00:00:14]} 9. O-O
{[%clk 01:39:08]} {[%emt 00:01:32]} e5 {[%clk 01:40:16]} {[%emt 00:00:51]} 10.
h3 {[%clk 01:37:59]} {[%emt 00:01:39]} a6 {[%clk 01:38:16]} {[%emt 00:02:30]}
11. Ba2 {[%clk 01:34:37]} {[%emt 00:03:52]} e4 {[%clk 01:22:33]} {[%emt
00:16:14]} 12. Ng5 {[%clk 01:25:28]} {[%emt 00:09:38]} Bf5 {[%clk 01:10:05]}
{[%emt 00:12:57]} 13. Qc2 {[%clk 01:18:29]} {[%emt 00:07:29]} Bg6 {[%clk
01:03:00]} {[%emt 00:07:36]} 14. Ngxe4 {[%clk 01:12:48]} {[%emt 00:06:11]} Nxe4
{[%clk 01:03:16]} {[%emt 00:00:14]} 15. Nxe4 {[%clk 01:13:12]} {[%emt
00:00:06]} Qh4 {[%clk 01:02:55]} {[%emt 00:00:51]} 16. f3 {[%clk 01:13:31]}
{[%emt 00:00:11]} Bxe4 {[%clk 00:59:03]} {[%emt 00:04:22]} 17. Qxe4 {[%clk
01:01:03]} {[%emt 00:13:01]} Qg3 {[%clk 00:58:26]} {[%emt 00:01:03]} 18. f4
{[%clk 01:01:23]} {[%emt 00:00:10]} g5 {[%clk 00:57:27]} {[%emt 00:01:29]} 19.
d5 {[%clk 00:51:14]} {[%emt 00:10:40]} Ne7 {[%clk 00:52:52]} {[%emt 00:05:05]}
20. Bd2 {[%clk 00:51:07]} {[%emt 00:00:36]} gxf4 {[%clk 00:51:06]} {[%emt
00:02:17]} 21. exf4 {[%clk 00:51:05]} {[%emt 00:00:32]} Rae8 {[%clk 00:51:00]}
{[%emt 00:00:36]} 22. Rf3 {[%clk 00:49:25]} {[%emt 00:02:09]} Qg7 {[%clk
00:50:28]} {[%emt 00:01:03]} 23. Bc3 {[%clk 00:48:53]} {[%emt 00:01:02]} f6
{[%clk 00:50:44]} {[%emt 00:00:13]} 24. Qe6+ {[%clk 00:43:32]} {[%emt
00:05:52]} Kh8 {[%clk 00:47:02]} {[%emt 00:04:11]} 25. Re1 {[%clk 00:37:43]}
{[%emt 00:06:20]} Qg6 {[%clk 00:45:39]} {[%emt 00:01:52]} 26. Bb1 {[%clk
00:30:38]} {[%emt 00:07:36]} Qh6 {[%clk 00:42:53]} {[%emt 00:03:14]} 27. Bd3
{[%clk 00:18:27]} {[%emt 00:12:42]} Rd8 {[%clk 00:38:26]} {[%emt 00:04:57]} 28.
b4 {[%clk 00:17:47]} {[%emt 00:01:11]} a5 {[%clk 00:36:17]} {[%emt 00:02:39]}
29. g4 {[%clk 00:14:53]} {[%emt 00:03:24]} axb4 {[%clk 00:34:09]} {[%emt
00:02:38]} 30. axb4 {[%clk 00:15:14]} {[%emt 00:00:09]} Qg7 {[%clk 00:30:58]}
{[%emt 00:03:41]} 31. g5 {[%clk 00:12:27]} {[%emt 00:03:16]} Nxd5 {[%clk
00:28:30]} {[%emt 00:02:58]} 32. Qxd5 {[%clk 00:12:31]} {[%emt 00:00:27]} Bxb4
{[%clk 00:24:08]} {[%emt 00:04:52]} 33. Qc4 {[%clk 00:12:35]} {[%emt 00:00:25]}
Bxc3 {[%clk 00:24:11]} {[%emt 00:00:27]} 34. Qxc3 {[%clk 00:13:00]} {[%emt
00:00:06]} fxg5 {[%clk 00:10:06]} {[%emt 00:14:35]} 35. Qxg7+ {[%clk 00:12:55]}
{[%emt 00:00:34]} Kxg7 {[%clk 00:10:31]} {[%emt 00:00:06]} 36. Re7+ {[%clk
00:12:10]} {[%emt 00:01:15]} Rf7 {[%clk 00:07:18]} {[%emt 00:03:43]} 37. Rxf7+
{[%clk 00:12:16]} {[%emt 00:00:24]} Kxf7 {[%clk 00:07:42]} {[%emt 00:00:06]} 38.
fxg5+ {[%clk 00:11:04]} {[%emt 00:01:42]} Kg7 {[%clk 00:02:04]} {[%emt
00:06:08]} 39. Kg2 {[%clk 00:07:30]} {[%emt 00:04:04]} Rd4 {[%clk 00:01:41]}
{[%emt 00:00:52]} 40. Kg3 {[%clk 00:05:48]} {[%emt 00:02:13]} c5 {[%clk
00:01:18]} {[%emt 00:00:53]} 41. Re3 {[%clk 00:02:58]} {[%emt 00:03:19]} c4
{[%clk 00:29:14]} {[%emt 00:02:34]} 42. Bf5 {[%clk 00:32:28]} {[%emt 00:01:00]}
Rd5 {[%clk 00:23:22]} {[%emt 00:06:23]} 43. Kg4 {[%clk 00:32:02]} {[%emt
00:00:55]} Rd4+ {[%clk 00:21:34]} {[%emt 00:02:19]} 44. Re4 {[%clk 00:28:59]}
{[%emt 00:03:33]} 1-0